Cogmind - Beta 13 @@@ ROGUE MODE // 2024.04.22 @ 11:41:14 Player: KIWA Result: Self-destructed Performance ------------- Evolutions (2) 1000 Regions Visited (5) 1000 Robots Destroyed (36) 180 Value Destroyed (895) 895 Prototype IDs (4) 80 Alien Tech Used (0) 0 Bonus (93) 93 TOTAL SCORE: 3248 Bonus ------- Aligned with FarCom 300 Friendly Fire -207 Cogmind --------- Core Integrity 420/550 Matter 300/300 Energy 32/250 System Corruption 0% Temperature Cool (53) Movement Walking (125) Location -8/Materials Parts ------- > --- POWER (1) -------- Ion Engine > --- PROPULSION (2) --- Carbon-fiber Leg Titanium Leg > --- UTILITY (6) ------ Lightpack 2.0 Core Analyzer ECM Suite Sensor Drone Bay (18/20) > --- WEAPON (2) ------- Arc Projector > --- INVENTORY (40) --- Aluminum Leg Wheel Core Analyzer Light Armor Plating Heavy EM Pulse Gun Arc Projector Medium Laser Grenade Launcher Remote Datajack Peak State ------------ > --- POWER ------------ Improved Ion Engine > --- PROPULSION ------- Carbon-fiber Leg Titanium Leg > --- UTILITY ---------- Lightpack 2.0 Core Analyzer ECM Suite Sensor Drone Bay > --- WEAPON ----------- Arc Projector Arc Projector > --- INVENTORY -------- Ion Engine Core Analyzer Light Armor Plating Heavy EM Pulse Gun Arc Projector Medium Laser Heavy Assault Rifle Grenade Launcher Remote Datajack [Rating: 61] Favorites ----------- Power Ion Engine Engine Ion Engine Propulsion Light Treads Treads Light Treads Leg Titanium Leg Utility Sensor Drone Bay Device Sensor Drone Bay Storage Medium Storage Unit Processor Core Analyzer Hackware Hacking Suite Weapon Light Assault Rifle Energy Gun Arc Projector Energy Cannon Beam Cannon Ballistic Gun Light Assault Rifle Launcher Grenade Launcher Build | -11 -10 -10 -10 -9 -8 ------- Run | Yrd Mat Min Exi Min Mat Slots Evolved 4 | . . . . . 4 Power . | . . . . . . Propulsion . | . . . . . . Utility 4 | . . . . . 4 Weapon . | . . . . . . Parts Attached 31 | 3 8 4 3 2 11 Power 3 | . 1 . . 1 1 Engine 3 | . 1 . . 1 1 Core . | . . . . . . Reactor . | . . . . . . Propulsion 6 | 2 . . . . 4 Treads 2 | 2 . . . . . Leg 4 | . . . . . 4 Wheel . | . . . . . . Hover . | . . . . . . Flight . | . . . . . . Utility 9 | . 3 1 2 . 3 Device 3 | . . 1 1 . 1 Storage 3 | . 2 . . . 1 Processor 2 | . . . 1 . 1 Hackware 1 | . 1 . . . . Protection . | . . . . . . Artifact . | . . . . . . Weapon 13 | 1 4 3 1 1 3 Energy Gun 7 | . 4 . . . 3 Energy Cannon 2 | . . 1 1 . . Ballistic Gun 1 | 1 . . . . . Ballistic Cannon . | . . . . . . Launcher 3 | . . 2 . 1 . Special Weapon . | . . . . . . Impact Weapon . | . . . . . . Slashing Weapon . | . . . . . . Piercing Weapon . | . . . . . . Special Melee Weapon . | . . . . . . Unidentified Prototypes 4 | . . 1 2 . 1 Parts Lost 7 | . 2 . . . 5 Power 1 | . . . . . 1 Propulsion 2 | . . . . . 2 Utility 1 | . 1 . . . . Weapon 3 | . 1 . . . 2 Highest Loss Streak 2 | . 1 . . . 2 To Critical Strikes . | . . . . . . Average Slot Usage (%) 91 | . 97 99 92 93 74 Engine 12 | . 14 14 14 14 8 Treads 21 | . 28 28 28 28 . Leg 3 | . . . . . 15 Device 10 | . . 13 13 14 15 Storage 12 | . 14 14 14 14 9 Processor 1 | . . . . . 7 Hackware 2 | . 11 . . . . Energy Gun 7 | . 14 2 . . 14 Energy Cannon 2 | . . 5 7 . . Ballistic Gun 6 | . 14 8 . . . Launcher 8 | . . 11 14 21 3 Naked Turns . | . . . . . . Heaviest Build 48 | 13 48 36 35 38 36 Greatest Support 40 | 40 40 40 40 40 40 Greatest Overweight (x) 10 | . 1 . . . 10 Average Overweight (x) . | . . . . . 1 Largest Inventory Capacity 40 | 8 20 10 10 10 40 Average Capacity 16 | 8 8 10 10 10 40 Most Carried 10 | 6 8 10 10 10 10 Average Carried 8 | 5 5 9 9 8 8 Final Capacity 40 | 8 10 10 10 10 40 Final Carried 10 | 3 8 10 9 9 9 Class Distribution -------------------- 77% | Mutant 22% | Hauler-Mutant Dominant Class ---------------- Mutant | -10/Materials Mutant | -10/Mines Mutant | -10/Exiles Mutant | -9/Mines Hauler-Mutant | -8/Materials Resources | -11 -10 -10 -10 -9 -8 ----------- Run | Yrd Mat Min Exi Min Mat Matter Collected 764 | 228 128 91 . 89 228 Remotely . | . . . . . . Salvage Created 1019 | 77 349 65 . 19 509 Parts 71 | 8 20 3 . 9 31 Haulers Intercepted 2 | . 1 . . . 1 Recyclers Shooed 1 | . . . . . 1 Parts Field Recycled . | . . . . . . Retrieved Matter . | . . . . . . Parts Self-Destructed . | . . . . . . Prevented . | . . . . . . Kills | -11 -10 -10 -10 -9 -8 ------- Run | Yrd Mat Min Exi Min Mat Combat Hostiles Destroyed 25 | . 8 5 . 4 8 Guns 9 | . 6 . . . 3 AOE 16 | . 2 5 . 4 5 Classes Destroyed 13 | 2 6 1 . . 4 Worker 2 | . 1 . . . 1 Builder 1 | . 1 . . . . Tunneler 1 | 1 . . . . . Hauler 2 | . 1 . . . 1 Recycler 2 | 1 . . . . 1 Operator 2 | . 2 . . . . Drone 1 | . . 1 . . . Watcher 1 | . . . . . 1 Swarmer 10 | . 3 3 . 4 . Grunt 11 | . 5 2 . . 4 Duelist 1 | . . . . . 1 Sentry 1 | . . . . . 1 Specialist 2 | . . . . . 2 Best Kill Streak 5 | 1 5 3 . 4 4 Combat Bots Only 4 | . 3 3 . 4 3 Max Kills in Single Turn 4 | 1 3 2 . 4 2 Gunslinging . | . . . . . . Exploded 4 | . 2 2 . 4 2 Melee . | . . . . . . Uniques/NPCs Destroyed . | . . . . . . Combat | -11 -10 -10 -10 -9 -8 -------- Run | Yrd Mat Min Exi Min Mat Hostile Shots Fired 111 | . 54 8 . 2 47 Missed 23 | . 10 2 . 1 10 Damage Taken 1296 | . 499 102 . 9 686 Core 227 | . 88 . . 9 130 Absorbed by Shields . | . . . . . . Core Remaining (%) 80 | 100 . . . 61 . Volleys Fired 100 | 6 54 7 . 1 32 Largest 2 | 2 2 2 . 2 2 Hottest 110 | 80 70 93 . 63 110 Shots Fired 184 | 12 108 14 . 2 48 Gun 160 | 12 108 3 . . 37 Cannon 4 | . . 4 . . . Launcher 20 | . . 7 . 2 11 Special . | . . . . . . Kinetic 60 | 3 54 3 . . . Thermal 49 | 3 42 4 . . . Explosive 20 | . . 7 . 2 11 Electromagnetic 55 | 6 12 . . . 37 Robot Hit Streak 17 | 4 17 2 . . 10 Robot Miss Streak 9 | 2 4 5 . . 9 Penetration Max . | . . . . . . Secondary Targets . | . . . . . . Shots Hit Robots 116 | 8 77 3 . . 28 Core Hits 67 | 3 23 9 . 6 26 Critical Kills . | . . . . . . Critical Parts Destroyed . | . . . . . . Critical Strikes 5 | . 5 . . . . Burn 5 | . 5 . . . . Melee Attacks . | . . . . . . Impact . | . . . . . . Slashing . | . . . . . . Piercing . | . . . . . . Sneak Attacks . | . . . . . . Combat Hostiles . | . . . . . . Follow-up Attacks . | . . . . . . Damage Inflicted 2596 | 90 887 467 . 201 951 Guns 1199 | 90 782 . . . 327 Cannons 19 | . . 19 . . . Explosions 1377 | . 104 448 . 201 624 Melee . | . . . . . . Ramming 1 | . 1 . . . . Kinetic 342 | 25 317 . . . . Thermal 575 | 22 488 19 . . 46 Explosive 1227 | . . 448 . 201 578 Electromagnetic 451 | 43 81 . . . 327 Impact . | . . . . . . Slashing . | . . . . . . Piercing . | . . . . . . Highest Corruption . | . . . . . . Average Corruption . | . . . . . . Corruption Purged . | . . . . . . Corruption Blocked . | . . . . . . Overload Shots . | . . . . . . Overflow Damage 50 | . 9 6 . . 35 Projectiles . | . . . . . . Explosions 50 | . 9 6 . . 35 Melee . | . . . . . . Knockbacks . | . . . . . . Impact . | . . . . . . Kinetic . | . . . . . . Secondary . | . . . . . . Self-Inflicted Damage 178 | . 40 46 . . 92 Shots 4 | . 1 1 . . 2 Rammed 1 | . 1 . . . . Targets Rammed 2 | . 2 . . . . Kicked . | . . . . . . Crushed 1 | . 1 . . . . Highest Temperature 252 | 54 213 132 . 3 252 Average Temperature 59 | 24 66 52 . 2 58 Received Heat Transfer 516 | . 219 9 . . 288 Siege Activations . | . . . . . . Robots Corrupted . | . . . . . . Combat Hostiles . | . . . . . . Parts Fried 3 | . . . . . 3 Impact Corruptions . | . . . . . . Robots Melted . | . . . . . . Combat Hostiles . | . . . . . . Parts Melted 3 | . 3 . . . . Heat Transferred 1693 | 50 1606 37 . . . Parts Sabotaged . | . . . . . . Parts Stolen . | . . . . . . Parts Stripped . | . . . . . . Power Chain Reactions 2 | . 1 . . . 1 Alert | -11 -10 -10 -10 -9 -8 ------- Run | Yrd Mat Min Exi Min Mat Peak Influence 238 | 10 238 129 . 119 213 Initial 54 | . 6 54 . . 46 Average 87 | 6 116 55 . 63 116 Maximum Alert Level 1 | . 1 . . . 1 Low Security (%) 96 | 100 94 100 . 100 92 Level 1 3 | . 5 . . . 7 Level 2 . | . . . . . . Level 3 . | . . . . . . Level 4 . | . . . . . . Level 5 . | . . . . . . High Security . | . . . . . . Max Security . | . . . . . . Squads Dispatched 5 | . 4 . . . 1 Investigation 1 | . 1 . . . . Extermination . | . . . . . . Reinforcement 4 | . 3 . . . 1 Assault . | . . . . . . Garrison . | . . . . . . Intercept . | . . . . . . Searches Triggered . | . . . . . . Construction Impeded . | . . . . . . Haulers Reinforced . | . . . . . . Active Scanning Responses . | . . . . . . Cargo Convoy Interrupts . | . . . . . . Stealth | -11 -10 -10 -10 -9 -8 --------- Run | Yrd Mat Min Exi Min Mat Distress Signals 1 | . 1 . . . . Communications Jammed . | . . . . . . Distress Signals . | . . . . . . Times Spotted 41 | . 22 5 . 4 10 Peak Tracking Total 5 | . 5 3 . 4 5 Tactical Retreats 1 | . . . . . 1 Traps | -11 -10 -10 -10 -9 -8 ------- Run | Yrd Mat Min Exi Min Mat Traps Triggered . | . . . . . . Indirectly . | . . . . . . Trap Hack Attempts . | . . . . . . Triggered . | . . . . . . Disarmed . | . . . . . . Reprogrammed . | . . . . . . Reused . | . . . . . . Traps Extracted . | . . . . . . Installed . | . . . . . . Triggered . | . . . . . . Machines | -11 -10 -10 -10 -9 -8 ---------- Run | Yrd Mat Min Exi Min Mat Machines Disabled 4 | . 1 . . . 3 Max in Single Turn 1 | . 1 . . . 1 Machines Repaired . | . . . . . . Machines Dismantled . | . . . . . . Machines Sabotaged . | . . . . . . Overloaded Fab Kills . | . . . . . . Hacking | -11 -10 -10 -10 -9 -8 --------- Run | Yrd Mat Min Exi Min Mat Machines Accessed 7 | . 5 1 . . 1 Terminals 6 | . 5 . . . 1 Fabricators . | . . . . . . Repair Stations . | . . . . . . Recycling Units . | . . . . . . Scanalyzers . | . . . . . . Garrison Access . | . . . . . . Total Hacks 18 | . 16 1 . . 1 Successful 6 | . 4 1 . . 1 Failed 12 | . 12 . . . . Catastrophic 2 | . 2 . . . . Database Lockouts . | . . . . . . Manual 14 | . 13 . 1 . . Terminals 17 | . 16 . . . 1 Fabricators . | . . . . . . Repair Stations . | . . . . . . Recycling Units . | . . . . . . Scanalyzers . | . . . . . . Garrison Access . | . . . . . . Terminal Hacks 6 | . 4 1 . . 1 Robot Analysis 4 | . 4 . . . . Open Door 1 | . . 1 . . . Alert Level 1 | . . . . . 1 Fabricator Hacks . | . . . . . . Repair Station Hacks . | . . . . . . Recycling Unit Hacks . | . . . . . . Scanalyzer . | . . . . . . Garrison Access Hacks . | . . . . . . Unauthorized Hacks . | . . . . . . Terminals . | . . . . . . Fabricators . | . . . . . . Repair Stations . | . . . . . . Recycling Units . | . . . . . . Scanalyzers . | . . . . . . Garrison Access . | . . . . . . Data Cores Recovered . | . . . . . . Used . | . . . . . . Hacking Detections 5 | . 5 . . . . Full Trace Events 3 | . 3 . . . . Feedback Events 1 | . 1 . . . . Hackware Fried 1 | . 1 . . . . Feedback Blocked . | . . . . . . Robot Schematics Acquired . | . . . . . . Robots Built . | . . . . . . Authchips . | . . . . . . Time . | . . . . . . Total Robot Build Rating . | . . . . . . Part Schematics Acquired . | . . . . . . Parts Built . | . . . . . . Authchips . | . . . . . . Time . | . . . . . . Total Part Build Rating . | . . . . . . Parts Repaired . | . . . . . . Time . | . . . . . . Parts Recycled . | . . . . . . Recycled Matter . | . . . . . . Retrieved Matter . | . . . . . . Retrieved Components . | . . . . . . Parts Scanalyzed . | . . . . . . Part Schematics Acquired . | . . . . . . Parts Damaged . | . . . . . . Bothacking | -11 -10 -10 -10 -9 -8 ------------ Run | Yrd Mat Min Exi Min Mat Used RIF Installer . | . . . . . . Robots Hacked . | . . . . . . Non-combat . | . . . . . . Combat . | . . . . . . Robot Hacks Applied . | . . . . . . Relay Couplers Released . | . . . . . . Fabnet Peak Effective % . | . . . . . . Robots Rewired . | . . . . . . Allies Hacked . | . . . . . . Hacks Repelled . | . . . . . . Allies | -11 -10 -10 -10 -9 -8 -------- Run | Yrd Mat Min Exi Min Mat Total Allies 2 | . . . . 2 . Largest Group 2 | . . . . 2 2 Highest-Rated Group 53 | . . . . 53 53 Highest-Rated Ally 31 | . . . . 31 31 Total Orders 8 | . . 3 1 2 2 EXPLORE 6 | . . 1 1 2 2 RETURN 2 | . . 2 . . . Ally Attacks 4 | . . . . 1 3 Total Damage 62 | . . . . . 62 Kills . | . . . . . . Allies Corrupted . | . . . . . . Allies Melted . | . . . . . . Intel | -11 -10 -10 -10 -9 -8 ------- Run | Yrd Mat Min Exi Min Mat Robot Analysis Total 4 | . 4 . . . . Derelict Logs Recovered 3 | . . 1 . 2 . Drone Launches 10 | . . 5 1 1 3 Drone Recoveries 8 | . . 3 . 1 4 Exploration | -11 -10 -10 -10 -9 -8 ------------- Run | Yrd Mat Min Exi Min Mat Turns Passed 2985 | 48 718 892 360 284 683 Spaces Moved 1517 | 20 326 528 218 168 257 Core 6 | . . . . . 6 Treads 1248 | 3 326 528 218 168 5 Legs 263 | 17 . . . . 246 Wheels . | . . . . . . Hover . | . . . . . . Flight . | . . . . . . Fastest Speed 120 | 120 160 160 160 160 125 Average Speed 166 | 126 160 160 160 160 202 Slowest Speed 550 | 160 240 160 160 160 550 Overloaded Moves . | . . . . . . Propulsion Burnouts . | . . . . . . Robots Hopped . | . . . . . . Cave-ins Triggered . | . . . . . . Exploration Rate (%) 62 | 2 65 98 88 96 28 Regions Visited 5 Branch Regions 3 Pre-discovered Areas 2 | . . 2 . . . Known Exits Taken . | . . . . . . Unknown Exits Taken 5 | 1 1 1 1 1 . Scrap Searched 5 | . . 2 . 3 . Spaces Dug . | . . . . . . Terrain Destroyed 158 | . 2 77 . 21 58 Melee . | . . . . . . Projectile . | . . . . . . AOE 158 | . 2 77 . 21 58 Terrain Rammed . | . . . . . . Walls Destroyed . | . . . . . . Machines Disabled . | . . . . . . Actions | -11 -10 -10 -10 -9 -8 --------- Run | Yrd Mat Min Exi Min Mat Total 1797 | 31 421 561 232 182 370 Wait 105 | . 19 18 1 7 60 Move 1512 | 19 325 527 217 167 257 Hop . | . . . . . . Pick Up 24 | . 10 4 2 3 5 Fast Attach 11 | . . . 3 . 8 Attach 7 | . 2 1 . 1 3 Detach 2 | . . . . . 2 Swap 13 | 3 6 3 . 1 . Drop 21 | 3 3 1 9 2 3 Fire 100 | 6 54 7 . 1 32 Melee . | . . . . . . Ram . | . . . . . . Kick . | . . . . . . Crush 2 | . 2 . . . . Escape Stasis . | . . . . . . Rewire . | . . . . . . Trap . | . . . . . . Miscellaneous . | . . . . . . Route ------- -11/Scrapyard -10/Materials (discovered 2 exits: *Mat / *Min) -10/Mines (discovered 3 exits: *Mat x2 / *Exi) -10/Exiles (discovered 2 exits: [*Min x2]) -9/Mines (discovered 2 exits: *Mat x2) -8/Materials (discovered 1 exit: Fac) History --------- Turn | Location | Event 10 | -11/Scrapyard | Discovered new exit (range 3) 49 | -11/Scrapyard | Entered Materials 247 | -10/Materials | Discovered new exit (range 9) 325 | -10/Materials | Build established: Mutant 695 | -10/Materials | Discovered new exit (range 12) 733 | -10/Materials | Hacking Suite fried by hacking feedback 767 | -10/Materials | Entered Mines 784 | -10/Mines | Found the Drone Emporium 791 | -10/Mines | Found Prototype Device 792 | -10/Mines | Identified Sensor Drone Bay 862 | -10/Mines | Learned location of Storage (-8) 892 | -10/Mines | Received a Rocket Launcher from a helpful Derelict 1110 | -10/Mines | Discovered new exit (range 8) 1128 | -10/Mines | Identified exit to Materials 1372 | -10/Mines | Discovered exit to Materials (range 38) 1651 | -10/Mines | Deemed a non-threat by the Exiles lab entrance 1653 | -10/Mines | Discovered new exit (range 5) 1659 | -10/Mines | Entered Exiles 1659 | -10/Exiles | Accompanied by 1 ally 1668 | -10/Exiles | Discovered new exit (range 24) 1702 | -10/Exiles | Met 8R-AWN 1728 | -10/Exiles | Met EX-HEX 1771 | -10/Exiles | Met EX-BIN 1790 | -10/Exiles | Aligned with FarCom system 1792 | -10/Exiles | Given EX-Vault access code 1801 | -10/Exiles | Discovered new exit (range 57) 1828 | -10/Exiles | Opened EX-Vault 1842 | -10/Exiles | Found Prototype Energy Cannon 1842 | -10/Exiles | Identified Gui. Plasma Cannon 1851 | -10/Exiles | Found Prototype Processor 1851 | -10/Exiles | Identified Modified TNC 1856 | -10/Exiles | Found Prototype Storage 1902 | -10/Exiles | Warned to stay clear of 0b10 Research branches 1951 | -10/Exiles | Met EX-DEC 2019 | -10/Exiles | Left Exiles lab with Lightpack 2.0 2019 | -10/Exiles | Entered Mines 2019 | -9/Mines | Accompanied by 2 allies 2111 | -9/Mines | Learned 4 Materials zone layouts 2232 | -9/Mines | Discovered new exit (range 33) 2248 | -9/Mines | Discovered new exit (range 28) 2265 | -9/Mines | Found a hidden stash of uninstalled traps 2295 | -9/Mines | Learned Materials trap positions 2303 | -9/Mines | Entered Materials 2303 | -8/Materials | Accompanied by 3 allies 2303 | -8/Materials | Evolved 4 slots: Utility x4 2303 | -8/Materials | Identified Lightpack 2.0 2304 | -8/Materials | Identified exit to Factory 2305 | -8/Materials | Loaded intel: 13 trap records 2308 | -8/Materials | Led the pair of lost Derelicts to an unsafe place 2599 | -8/Materials | Build established: Hauler-Mutant 2986 | -8/Materials | Self-destructed Last Messages --------------- 02943_ Slug penetrates X-62 Marksman. 02943_ Imp. Ion Engine destroyed. 02945_ X-62 Marksman destroyed. 02946_ Acquired 15 matter. 02948_ Penetrated by Slug. 02954_ Acquired 10 matter. 02954_ Penetrated by Slug. 02954_ Critical hit (Burn: +37). 02957_ Penetrated by Slug. 02968_ Slug penetrates Wall. 02971_ Penetrated by Slug. 02971_ Arc Projector destroyed. 02980_ X-62 Marksman misfires. 02982_ Slug penetrates Wall. 02984_ Chain reaction triggered in Imp. Deuterium Engine. 02984_ Armor Integrity Analyzer fried. 02984_ Adv. Visual Processing Unit fried. 02984_ Core Analyzer fried. 02984_ X-62 Marksman destroyed. Map ----- +----------------------------------------------------+ | ???????????????????????? """ """ # """ #???????? | | ???????????????????????? """ """ # """ #???????? | | ???????????????????????? # #???????? | | ???????????????????????? # #???????? | | ????????????????????????#######+## #???????? | | ????????????????????????##### ##+#####???????? | | ???????????????????????? #?????????? | | ???????????????????????? T #?????????? | | ????????????????????????##### ##+#####???????? | | ???????????????????????? ## ## #???????? | | ??????##???????????????? ## ## #???????? | | ????? ???????????????? ## ## " " #???????? | | ?? ? ????????????????? ## ## "G" #???????? | | T ????????????????? ## ## " #???????? | | " ??????????????????##+## # #???????? | | ?????????????????? H ########???????? | | """ ??????????????????? #??????????????? | | """ ???????????????????##### #???????######## | | """????????????????????????######???????# # | | ^?????????????????????????????????????# # | | ##+#############+######################### # | | ^ [ # " # | | %*= ^ ! # """ # | | ! [ T # """ # | | ##+####### ###+######;;;;## ^ # """ # | | ! ## # [@;## # "" # | | """ ## # [=# #^ """ """ # """ # | | """"" ## # #?# """ """ + "" # | | """"" ## # #?# """ """ # """ # | | """"" ## # #?# # " # | | """ ## ################ # # | | ## #?????# # #######+######### | | ] ## #?????#""""" # #???# #?? | | ########## #?????#""""" # #???# "" #?? | | ?# #?????# #?????#""""" # #???# "" #?? | | ?# #?????# #######""""" + #???# "T """ #?? | | ?# #?????# # #""""" # #???# "" """ #?? | | ?# #?????# # #""""" # #???# "" """ #?? | | ########## # #""""" # #???# #?? | | # # # # #???# #?? | | T + + ######+### ##### #########?? | | # # #?# ###?????????? | | # # #?# < #???????????? | | ######/### ######### #???????????? | | ??# # ## # ############???????????? | | ??# """ # / # # #????????????? | | ??# """ # ##""" # # #????????????? | | ??# """ + ##"R + ????????????????????????? | | ??# # ##""" # ????????????????????????? | | ??# # ## # ????????????????????????? | +----------------------------------------------------+ Best States ------------- Heat Dissipation 31 Energy Generation 12 Energy Capacity 265 Matter Stores 300 Matter Capacity 300 Sight Range 16 Terrain Scan Density 10 ECM Strength 1 Evasion (%) 55 Core Analysis 6 Recoil Reduction 2 Offensive Hacking 10 Item Schematics ----------------- None Robot Schematics ------------------ None Fabricated ------------ Nothing Alien Tech Used ----------------- None Achievements -------------- None Challenges ------------ None Game ------ Seed ChromaticCloakingCharger Manual? 0 Play Time 00:31:59 Cumulative 16.8 hours Start 2024.04.22 @ 10:40:44 End 2024.04.22 @ 11:41:14 Sessions 3 Manual Loads 0 Difficulty Rogue Special Mode None Game No. 40 Rogue 40 Adventurer 0 Explorer 0 Win Type - Total 0 Types 0/0/0/0/0/0/0/0/0 Lore% 17 Gallery% 27 Achievement% 21 Wizard Run 0 Options --------- Layout 1 ASCII 0 Keyboard 0 Movement Mouse Keybinds 0 Fullscreen 0 Font 42/SmallcapsGlow Map View 50x35 Zoom Use 0% Tactical HUD 1 Map Filters NONE Filters NONE Steam 1 RUN: 3381d81b-3ae3-4ebc-aaba-5bc4c9a167e5